[Event "European Womens-ch 2025"]
[Site "Rhodes"]
[Date "2025.04.10"]
[Round "10.14"]
[White "Krasteva, Beloslava"]
[Black "Socko, Monika"]
[Result "1/2-1/2"]
[Annotator "RC"]
[ECO "D02"]
[WhiteElo "2257"]
[BlackElo "2369"]
[PlyCount "179"]
[EventDate "2025.03.29"]
[EventType "swiss"]
[EventCountry "GRE"]
[SourceTitle "playchess.com"]
[Source "ChessBase"]
[SourceQuality "1"]
[TimeControl "40/5400+30:1800+30"]

1. d4 {[%emt 0:00:04]} d5 {[%emt 0:00:04]} 2. Nf3 {[%emt 0:00:37]} Nf6 {[%emt 0:00:17]} 3. Bf4 {[%emt 0:00:11]} c5 {[%emt 0:00:17]} 4. e3 {[%emt 0:00:14]} Nc6 {[%emt 0:00:18]} 5. Nbd2 {[%emt 0:00:11]} e6 {[%emt 0:00:27]} 6. c3 {[%emt 0:00:38]} Nh5 {[%emt 0:00:06]} 7. Bg5 {[%emt 0:00:47]} f6 {[%emt 0:00:04]} 8. Bh4 {[%emt 0:00:08]} g6 {[%emt 0:00:08]} 9. Be2 {[%emt 0:00:36]} cxd4 {[%emt 0:00:10]} 10. cxd4 {[%emt 0:00:14]} Ng7 {[%emt 0:00:20]} 11. Bg3 {[%emt 0:00:57]} Nf5 {[%emt 0:00:07]} 12. O-O {[%emt 0:03:16]} Nxg3 {[%emt 0:00:04]} 13. hxg3 {[%emt 0:00:05]} Qb6 {[%emt 0:00:18]} 14. Nb3 {[%emt 0:02:26]} Bd6 {[%emt 0:03:56]} 15. Rc1 {[%emt 0:06:15]} O-O {[%emt 0:02:37]} 16. a3 {[%emt 0:11:03]} Bd7 {[%emt 0:04:13]} 17. Rc3 {[%emt 0:04:49]} Rad8 {[%emt 0:14:00]} 18. Qd2 {[%emt 0:02:55]} Bc8 {[%emt 0:08:11]} 19. Rfc1 {[%emt 0:03:18]} Kh8 {[%emt 0:06:04]} 20. Nc5 {[%emt 0:03:20]} Bxc5 {[%emt 0:00:56]} 21. Rxc5 {[%emt 0:02:02]} Ne7 {[%emt 0:01:29]} 22. Qb4 {[%emt 0:09:13]} Qxb4 {[%emt 0:21:23]} 23. axb4 {[%emt 0:00:06]} a6 {[%emt 0:00:05]} 24. b5 {[%emt 0:05:22]} axb5 {[%emt 0:01:18]} 25. Bxb5 {[%emt 0:00:09]} Nf5 {[%emt 0:00:23]} 26. Rc7 {[%emt 0:18:22]} Nd6 {[%emt 0:00:25]} 27. Ba4 {[%emt 0:00:29]} b5 {[%emt 0:03:53]} 28. Bd1 {[%emt 0:00:30]} Bd7 {[%emt 0:06:52]} 29. Ne1 {[%emt 0:02:09]} Rc8 {[%emt 0:03:01]} 30. Nd3 {[%emt 0:00:35]} Rxc7 {[%emt 0:03:17]} 31. Rxc7 {[%emt 0:00:06]} Bc8 {[%emt 0:00:21]} 32. Nc5 {[%emt 0:05:17]} Rd8 {[%emt 0:02:27]} 33. Bg4 {[%emt 0:02:19]} e5 {[%emt 0:02:47]} 34. Bxc8 {[%emt 0:00:27]} Rxc8 {[%emt 0:00:03]} 35. Rd7 {[%emt 0:02:14]} exd4 {[%emt 0:02:39]} 36. exd4 {[%emt 0:00:27]} Nf5 {[%emt 0:00:07]} 37. Rxd5 {[%emt 0:06:02]} Nxd4 {[%emt 0:00:03]} 38. Nd3 {[%emt 0:03:40]} Ne2+ {[%emt 0:02:30]} 39. Kf1 {[%emt 0:01:33]} Rc2 {[%emt 0:03:29]} 40. Rxb5 {[%emt 0:00:00]} Nd4 {[%emt 0:00:00]} 41. Rb4 {[%emt 0:08:22]} Nc6 {[%emt 0:00:11]} 42. Rb6 {[%emt 0:02:15]} Ne5 {[%emt 0:03:09]} 43. Nxe5 {[%emt 0:10:16]} fxe5 {[%emt 0:00:04]} 44. Rb7 {[%emt 0:00:16]} Kg8 {[%emt 0:03:10]} 45. b4 {[%emt 0:05:09]} Rb2 {[%emt 0:04:32]} 46. g4 {[%emt 0:01:51]} Kf8 {[%emt 0:03:09]} 47. f3 {[%emt 0:04:50]} h6 {[%emt 0:07:33]} 48. b5 {[%emt 0:04:24]} Ke8 {[%emt 0:01:42]} 49. b6 {[%emt 0:00:19]} g5 {[%emt 0:07:16]} 50. g3 {[%emt 0:01:33]} Kd8 {[%emt 0:01:35]} 51. Rb8+ {[%emt 0:01:43]} Kd7 {[%emt 0:00:01]} 52. b7 {[%emt 0:00:29]} Kc7 {[%emt 0:01:51]} 53. Rh8 {[%emt 0:00:06]} Kxb7 {[%emt 0:00:31]} 54. Rxh6 {[%emt 0:00:07]} e4 {[%emt 0:00:56]} 55. fxe4 {[%emt 0:02:32]} Rb4 {[%emt 0:00:02]} 56. Rg6 {[%emt 0:00:37]} Rxe4 {[%emt 0:00:20]} 57. Rxg5 {[%emt 0:00:04]} Kc6 {[%emt 0:00:06]} 58. Kf2 {[%emt 0:00:06]} Kd6 {[%emt 0:00:07]} 59. Kf3 {[%emt 0:00:11]} Ra4 {[%emt 0:01:18]} 60. Rf5 {[%emt 0:00:09]} Ke6 {[%emt 0:00:03]} 61. Rf4 {[%emt 0:00:27]} Ra3+ {[%emt 0:00:02]} 62. Kg2 {[%emt 0:00:21]} Ra1 {[%emt 0:00:10]} 63. Rf1 {[%emt 0:01:08]} Ra8 {[%emt 0:01:12]} 64. Rf2 {[%emt 0:00:11]} Ra7 {[%emt 0:00:56]} 65. Rf8 {[%emt 0:00:45]} Ra1 {[%emt 0:00:39]} 66. Rf5 {[%emt 0:00:38]} Ra3 {[%emt 0:03:35]} 67. Kh3 {[%emt 0:00:20]} Ra8 {[%emt 0:00:25]} 68. Kh4 {[%emt 0:00:16]} Rh8+ {[%emt 0:00:02]} 69. Kg5 {[%emt 0:00:39]} Rg8+ {[%emt 0:00:00]} 70. Kh4 {[%emt 0:01:12]} Rh8+ {[%emt 0:00:05]} 71. Rh5 {[%emt 0:00:34]} Rg8 {[%emt 0:00:04]} 72. Ra5 {[%emt 0:00:58]} Rh8+ {[%emt 0:03:16]} 73. Kg5 {[%emt 0:00:11]} Rg8+ {[%emt 0:00:01]} 74. Kf4 {[%emt 0:00:10]} Rf8+ {[%emt 0:00:01]} 75. Ke4 {[%emt 0:00:26]} Rb8 {[%emt 0:00:54]} 76. Ra6+ {[%emt 0:01:01]} Kf7 {[%emt 0:00:15]} 77. g5 {[%emt 0:00:13]} Rb5 {[%emt 0:00:59]} 78. Kf4 {[%emt 0:00:17]} Kg7 {[%emt 0:00:02]} 79. Kg4 {[%emt 0:00:27]} Rb1 {[%emt 0:00:02]} 80. Ra7+ {[%emt 0:00:45]} Kg6 {[%emt 0:00:11]} 81. Ra6+ {[%emt 0:00:03]} Kg7 {[%emt 0:00:03]} 82. g6 {[%emt 0:00:43]} Rc1 {[%emt 0:02:26]} 83. Kf5 {[%emt 0:00:41]} Rc5+ {[%emt 0:00:06]} 84. Kf4 {[%emt 0:00:06]} Rb5 {[%emt 0:00:22]} 85. g4 {[%emt 0:00:12]} Rc5 {[%emt 0:00:48]} 86. Re6 {[%emt 0:00:27]} Ra5 {[%emt 0:00:28]} 87. g5 {[%emt 0:00:33]} Ra1 {[%emt 0:00:41]} 88. Rf6 {[%emt 0:00:34]} Rf1+ {[%emt 0:00:31]} 89. Ke5 {[%emt 0:00:10]} Re1+ {[%emt 0:00:12]} 90. Kf4 {[%emt 0:00:47]} 1/2-1/2

[Event "European Womens-ch 2025"]
[Site "Rhodes"]
[Date "2025.04.10"]
[Round "10.15"]
[White "Khurtsilava, Inga"]
[Black "Mammadova, Gulnar"]
[Result "0-1"]
[Annotator "ChessBase"]
[ECO "A22"]
[WhiteElo "2214"]
[BlackElo "2342"]
[PlyCount "78"]
[EventDate "2025.03.29"]
[EventType "swiss"]
[EventCountry "GRE"]
[SourceTitle "playchess.com"]
[Source "ChessBase"]
[SourceQuality "1"]
[TimeControl "40/5400+30:1800+30"]

1. c4 {[%emt 0:00:10]} Nf6 {[%emt 0:00:16]} 2. Nc3 {[%emt 0:00:05]} e5 {[%emt 0:00:06]} 3. g3 {[%emt 0:00:06]} Bb4 {[%emt 0:00:23]} 4. Bg2 {[%emt 0:00:18]} O-O {[%emt 0:00:09]} 5. e4 {[%emt 0:00:28]} c6 {[%emt 0:06:20]} 6. Nge2 {[%emt 0:00:28]} d6 {[%emt 0:04:13]} 7. O-O {[%emt 0:01:59]} Be6 {[%emt 0:00:36]} 8. d3 {[%emt 0:10:26]} Qd7 {[%emt 0:03:28]} 9. Bg5 {[%emt 0:05:49]} Ne8 {[%emt 0:02:56]} 10. Be3 {[%emt 0:00:43]} f5 {[%emt 0:04:08]} 11. exf5 {[%emt 0:01:11]} Bxf5 {[%emt 0:00:40]} 12. d4 {[%emt 0:00:16]} Nf6 {[%emt 0:03:50]} 13. dxe5 {[%emt 0:07:29]} dxe5 {[%emt 0:00:24]} 14. Qb3 {[%emt 0:00:56]} Na6 {[%emt 0:01:37]} 15. Rad1 {[%emt 0:01:40]} Qf7 {[%emt 0:02:30]} 16. Na4 {[%emt 0:07:26]} Be6 {[%emt 0:04:35]} 17. Rc1 {[%emt 0:01:20]} b5 {[%emt 0:03:35]} 18. Nac3 {[%emt 0:17:01]} Bxc4 {[%emt 0:02:00]} 19. Qc2 {[%emt 0:00:26]} Bxc3 {[%emt 0:04:53]} 20. bxc3 {[%emt 0:01:39]} Qh5 {[%emt 0:02:53]} 21. f3 {[%emt 0:02:39]} Nd5 {[%emt 0:01:33]} 22. Bf2 {[%emt 0:00:24]} Rxf3 {[%emt 0:09:30]} 23. Bxf3 {[%emt 0:20:36]} Qxf3 {[%emt 0:00:06]} 24. Qd2 {[%emt 0:00:33]} Bxe2 {[%emt 0:02:51]} 25. Rfe1 {[%emt 0:01:36]} Bd3 {[%emt 0:00:32]} 26. Rxe5 {[%emt 0:12:42]} Be4 {[%emt 0:00:25]} 27. Rxe4 {[%emt 0:01:46]} Qxe4 {[%emt 0:00:06]} 28. Re1 {[%emt 0:00:25]} Qf5 {[%emt 0:02:14]} 29. Bd4 {[%emt 0:01:28]} Nac7 {[%emt 0:00:55]} 30. Rf1 {[%emt 0:00:53]} Qg6 {[%emt 0:00:40]} 31. Bc5 {[%emt 0:00:56]} Ne6 {[%emt 0:01:18]} 32. Qf2 {[%emt 0:01:53]} Nxc5 {[%emt 0:00:38]} 33. Qxc5 {[%emt 0:00:07]} h6 {[%emt 0:00:47]} 34. a3 {[%emt 0:00:44]} Qe6 {[%emt 0:00:28]} 35. h4 {[%emt 0:00:46]} Qe3+ {[%emt 0:00:16]} 36. Qxe3 {[%emt 0:00:05]} Nxe3 {[%emt 0:00:02]} 37. Rf4 {[%emt 0:00:26]} Nd5 {[%emt 0:00:07]} 38. Rf3 {[%emt 0:00:23]} Re8 {[%emt 0:00:05]} 39. Kf2 {[%emt 0:00:06]} Rf8 {[%emt 0:00:15]} 0-1

[Event "European Womens-ch 2025"]
[Site "Rhodes"]
[Date "2025.04.10"]
[Round "10.16"]
[White "Brunello, Marina"]
[Black "Zherebtsova, Alexandra"]
[Result "1-0"]
[Annotator "ChessBase"]
[ECO "A14"]
[WhiteElo "2330"]
[BlackElo "2229"]
[PlyCount "55"]
[EventDate "2025.03.29"]
[EventType "swiss"]
[EventCountry "GRE"]
[SourceTitle "playchess.com"]
[Source "ChessBase"]
[SourceQuality "1"]
[TimeControl "40/5400+30:1800+30"]

1. Nf3 {[%emt 0:04:03]} Nf6 {[%emt 0:01:09]} 2. c4 {[%emt 0:00:07]} e6 {[%emt 0:00:17]} 3. g3 {[%emt 0:00:04]} d5 {[%emt 0:00:30]} 4. Bg2 {[%emt 0:00:07]} Be7 {[%emt 0:00:20]} 5. O-O {[%emt 0:00:14]} O-O {[%emt 0:00:23]} 6. b3 {[%emt 0:00:14]} d4 {[%emt 0:02:19]} 7. e3 {[%emt 0:04:40]} c5 {[%emt 0:00:05]} 8. Ne5 {[%emt 0:00:23]} Qc7 {[%emt 0:06:45]} 9. f4 {[%emt 0:00:28]} Nbd7 {[%emt 0:00:25]} 10. Nd3 {[%emt 0:00:06]} e5 {[%emt 0:01:23]} 11. Nf2 {[%emt 0:00:05]} Bd6 {[%emt 0:12:19]} 12. f5 {[%emt 0:02:01]} Rb8 {[%emt 0:35:11]} 13. e4 {[%emt 0:01:33]} b5 {[%emt 0:01:35]} 14. d3 {[%emt 0:05:06]} bxc4 {[%emt 0:04:21]} 15. bxc4 {[%emt 0:00:05]} Nb6 {[%emt 0:02:19]} 16. g4 {[%emt 0:01:42]} Nfd7 {[%emt 0:03:49]} 17. g5 {[%emt 0:09:07]} f6 {[%emt 0:09:42]} 18. h4 {[%emt 0:00:51]} Qd8 {[%emt 0:04:02]} 19. Qh5 {[%emt 0:01:58]} Qe7 {[%emt 0:00:09]} 20. g6 {[%emt 0:04:47]} h6 {[%emt 0:00:04]} 21. Ng4 {[%emt 0:00:13]} Rd8 {[%emt 0:04:15]} 22. Bxh6 {[%emt 0:00:38]} Kf8 {[%emt 0:01:02]} 23. Bd2 {[%emt 0:09:35]} Ke8 {[%emt 0:00:05]} 24. Qh8+ {[%emt 0:00:34]} Qf8 {[%emt 0:00:41]} 25. Qh7 {[%emt 0:00:14]} Qe7 {[%emt 0:00:26]} 26. Bh6 {[%emt 0:01:02]} gxh6 {[%emt 0:00:21]} 27. g7 {[%emt 0:00:05]} Nf8 {[%emt 0:00:07]} 28. Qh8 {[%emt 0:00:17]} 1-0

[Event "European Womens-ch 2025"]
[Site "Rhodes"]
[Date "2025.04.10"]
[Round "10.17"]
[White "Zawadzka, Jolanta"]
[Black "Velikic, Adela"]
[Result "1-0"]
[Annotator "ChessBase"]
[ECO "A17"]
[WhiteElo "2326"]
[BlackElo "2214"]
[PlyCount "71"]
[EventDate "2025.03.29"]
[EventType "swiss"]
[EventCountry "GRE"]
[SourceTitle "playchess.com"]
[Source "ChessBase"]
[SourceQuality "1"]
[TimeControl "40/5400+30:1800+30"]

1. Nf3 {[%emt 0:00:03]} d5 {[%emt 0:00:16]} 2. e3 {[%emt 0:00:05]} Nf6 {[%emt 0:01:23]} 3. c4 {[%emt 0:00:08]} e6 {[%emt 0:00:23]} 4. Nc3 {[%emt 0:00:11]} a6 {[%emt 0:07:49]} 5. b3 {[%emt 0:01:08]} b6 {[%emt 0:03:34]} 6. cxd5 {[%emt 0:05:49]} exd5 {[%emt 0:00:13]} 7. Bb2 {[%emt 0:00:06]} Bb7 {[%emt 0:02:04]} 8. d4 {[%emt 0:02:05]} Bd6 {[%emt 0:04:09]} 9. Bd3 {[%emt 0:00:19]} O-O {[%emt 0:04:30]} 10. O-O {[%emt 0:00:11]} Re8 {[%emt 0:03:39]} 11. Ne2 {[%emt 0:07:49]} Ne4 {[%emt 0:03:03]} 12. Ng3 {[%emt 0:00:55]} Nxg3 {[%emt 0:08:34]} 13. hxg3 {[%emt 0:01:58]} Nd7 {[%emt 0:01:18]} 14. Rc1 {[%emt 0:02:12]} Nf6 {[%emt 0:03:50]} 15. Ne5 {[%emt 0:10:35]} Ne4 {[%emt 0:06:53]} 16. Qc2 {[%emt 0:02:40]} Qg5 {[%emt 0:04:23]} 17. Bxe4 {[%emt 0:21:20]} dxe4 {[%emt 0:00:52]} 18. Nc4 {[%emt 0:00:05]} Bf8 {[%emt 0:02:49]} 19. Ba3 {[%emt 0:00:33]} Re6 {[%emt 0:06:31]} 20. Bxf8 {[%emt 0:01:02]} Rxf8 {[%emt 0:00:20]} 21. Qe2 {[%emt 0:02:55]} Rh6 {[%emt 0:01:11]} 22. Ne5 {[%emt 0:00:57]} c5 {[%emt 0:17:56]} 23. Qg4 {[%emt 0:03:40]} Qe7 {[%emt 0:06:54]} 24. Rfd1 {[%emt 0:04:27]} cxd4 {[%emt 0:02:20]} 25. exd4 {[%emt 0:00:28]} Rd8 {[%emt 0:01:13]} 26. Qf4 {[%emt 0:01:05]} Rf6 {[%emt 0:01:36]} 27. Qh4 {[%emt 0:03:32]} Qd6 {[%emt 0:05:42]} 28. Nc4 {[%emt 0:01:41]} Qd7 {[%emt 0:00:31]} 29. Ne3 {[%emt 0:00:20]} Rd6 {[%emt 0:00:31]} 30. g4 {[%emt 0:07:02]} Rg6 {[%emt 0:00:28]} 31. Qg3 {[%emt 0:01:05]} Qd6 {[%emt 0:00:27]} 32. Nf5 {[%emt 0:01:53]} Qa3 {[%emt 0:00:36]} 33. Qc7 {[%emt 0:00:58]} Re8 {[%emt 0:00:23]} 34. Qxb7 {[%emt 0:00:21]} Rxg4 {[%emt 0:00:26]} 35. Rc8 {[%emt 0:00:19]} Qf8 {[%emt 0:00:39]} 36. Rdc1 {[%emt 0:00:22]} 1-0

[Event "European Womens-ch 2025"]
[Site "Rhodes"]
[Date "2025.04.10"]
[Round "10.18"]
[White "Zhukova, Natalia"]
[Black "Abdinova, Narmin"]
[Result "1-0"]
[Annotator "ChessBase"]
[ECO "A13"]
[WhiteElo "2306"]
[BlackElo "2165"]
[PlyCount "46"]
[EventDate "2025.03.29"]
[EventType "swiss"]
[EventCountry "GRE"]
[SourceTitle "playchess.com"]
[Source "ChessBase"]
[SourceQuality "1"]
[TimeControl "40/5400+30:1800+30"]

1. Nf3 {[%emt 0:00:03]} d5 {[%emt 0:03:39]} 2. e3 {[%emt 0:00:13]} Nf6 {[%emt 0:00:30]} 3. c4 {[%emt 0:00:13]} e6 {[%emt 0:00:07]} 4. Nc3 {[%emt 0:00:15]} Be7 {[%emt 0:00:40]} 5. b3 {[%emt 0:00:17]} O-O {[%emt 0:00:18]} 6. Bb2 {[%emt 0:00:13]} c5 {[%emt 0:00:20]} 7. cxd5 {[%emt 0:00:18]} exd5 {[%emt 0:00:04]} 8. d4 {[%emt 0:00:20]} Nc6 {[%emt 0:00:07]} 9. Be2 {[%emt 0:02:08]} Ne4 {[%emt 0:00:43]} 10. dxc5 {[%emt 0:01:08]} Bf6 {[%emt 0:02:37]} 11. Rc1 {[%emt 0:00:57]} Qa5 {[%emt 0:29:24]} 12. Nd4 {[%emt 0:00:19]} Nxd4 {[%emt 0:00:28]} 13. exd4 {[%emt 0:00:10]} Bg5 {[%emt 0:24:24]} 14. Rc2 {[%emt 0:01:58]} Bf5 {[%emt 0:00:04]} 15. Bd3 {[%emt 0:17:07]} Bf6 {[%emt 0:07:31]} 16. O-O {[%emt 0:01:07]} Bxd4 {[%emt 0:00:10]} 17. Nxd5 {[%emt 0:25:35]} Bxc5 {[%emt 0:01:47]} 18. b4 {[%emt 0:04:11]} Qxa2 {[%emt 0:24:03]} 19. Bc4 {[%emt 0:06:22]} Nc3 {[%emt 0:00:23]} 20. Rxc3 {[%emt 0:12:55]} Qxb2 {[%emt 0:00:10]} 21. bxc5 {[%emt 0:00:03]} Rad8 {[%emt 0:02:05]} 22. Rb3 {[%emt 0:05:50]} Qa2 {[%emt 0:01:03]} 23. Qc1 {[%emt 0:01:11]} Bd3 {[%emt 0:00:52]} 1-0

[Event "European Womens-ch 2025"]
[Site "Rhodes"]
[Date "2025.04.10"]
[Round "10.19"]
[White "Mamedjarova, Turkan"]
[Black "Radeva, Viktoria"]
[Result "1-0"]
[Annotator "ChessBase"]
[ECO "D05"]
[WhiteElo "2206"]
[BlackElo "2297"]
[PlyCount "77"]
[EventDate "2025.03.29"]
[EventType "swiss"]
[EventCountry "GRE"]
[SourceTitle "playchess.com"]
[Source "ChessBase"]
[SourceQuality "1"]
[TimeControl "40/5400+30:1800+30"]

1. d4 {[%emt 0:00:09]} d5 {[%emt 0:00:06]} 2. Nf3 {[%emt 0:00:07]} Nf6 {[%emt 0:00:07]} 3. e3 {[%emt 0:00:14]} e6 {[%emt 0:00:27]} 4. Bd3 {[%emt 0:00:14]} c5 {[%emt 0:01:47]} 5. b3 {[%emt 0:00:25]} Nc6 {[%emt 0:00:51]} 6. O-O {[%emt 0:00:23]} Be7 {[%emt 0:01:06]} 7. Bb2 {[%emt 0:01:21]} O-O {[%emt 0:00:54]} 8. Nbd2 {[%emt 0:00:13]} b6 {[%emt 0:00:56]} 9. a3 {[%emt 0:04:11]} Bb7 {[%emt 0:01:14]} 10. Ne5 {[%emt 0:00:47]} Rc8 {[%emt 0:09:28]} 11. f4 {[%emt 0:06:41]} Nxe5 {[%emt 0:16:25]} 12. fxe5 {[%emt 0:03:30]} Ne4 {[%emt 0:00:11]} 13. Qe2 {[%emt 0:18:56]} Qc7 {[%emt 0:19:29]} 14. c4 {[%emt 0:03:22]} Bg5 {[%emt 0:11:26]} 15. Bxe4 {[%emt 0:09:11]} dxe4 {[%emt 0:00:07]} 16. Rae1 {[%emt 0:00:46]} Bh6 {[%emt 0:10:11]} 17. Qg4 {[%emt 0:05:50]} cxd4 {[%emt 0:00:11]} 18. Bxd4 {[%emt 0:00:45]} Qc6 {[%emt 0:00:59]} 19. Rf6 {[%emt 0:03:46]} g6 {[%emt 0:01:43]} 20. Qh4 {[%emt 0:01:48]} Bg7 {[%emt 0:00:28]} 21. Rf4 {[%emt 0:01:53]} h6 {[%emt 0:04:48]} 22. Rxe4 {[%emt 0:04:03]} Rcd8 {[%emt 0:04:05]} 23. Qg3 {[%emt 0:02:08]} Rd7 {[%emt 0:04:08]} 24. Re2 {[%emt 0:05:33]} b5 {[%emt 0:01:36]} 25. Rf4 {[%emt 0:06:44]} Qa6 {[%emt 0:02:39]} 26. Bc5 {[%emt 0:01:59]} Rfd8 {[%emt 0:02:57]} 27. Bd4 {[%emt 0:04:11]} Qxa3 {[%emt 0:00:26]} 28. h4 {[%emt 0:00:20]} Bxe5 {[%emt 0:03:07]} 29. Bxe5 {[%emt 0:01:36]} Rxd2 {[%emt 0:00:04]} 30. Rxd2 {[%emt 0:07:55]} Rxd2 {[%emt 0:00:18]} 31. Rf2 {[%emt 0:00:01]} Qc1+ {[%emt 0:01:48]} 32. Kh2 {[%emt 0:00:20]} bxc4 {[%emt 0:01:01]} 33. Bd4 {[%emt 0:01:27]} Rxd4 {[%emt 0:00:57]} 34. Qb8+ {[%emt 0:00:54]} Kg7 {[%emt 0:00:08]} 35. Qe5+ {[%emt 0:00:52]} Kg8 {[%emt 0:00:01]} 36. Qxd4 {[%emt 0:00:41]} Bd5 {[%emt 0:00:16]} 37. Qf6 {[%emt 0:00:18]} e5 {[%emt 0:00:31]} 38. Qd8+ {[%emt 0:00:11]} Kg7 {[%emt 0:00:03]} 39. Qxd5 {[%emt 0:00:07]} 1-0

[Event "European Womens-ch 2025"]
[Site "Rhodes"]
[Date "2025.04.10"]
[Round "10.20"]
[White "Ter-Avetisjana, Agnesa Stepania"]
[Black "Yao, Lan"]
[Result "1/2-1/2"]
[Annotator "ChessBase"]
[ECO "B40"]
[WhiteElo "2100"]
[BlackElo "2294"]
[PlyCount "81"]
[EventDate "2025.03.29"]
[EventType "swiss"]
[EventCountry "GRE"]
[SourceTitle "playchess.com"]
[Source "ChessBase"]
[SourceQuality "1"]
[TimeControl "40/5400+30:1800+30"]

1. e4 {[%emt 0:00:47]} c5 {[%emt 0:01:12]} 2. Nf3 {[%emt 0:00:07]} e6 {[%emt 0:00:09]} 3. b3 {[%emt 0:00:06]} a6 {[%emt 0:00:22]} 4. Bb2 {[%emt 0:00:08]} Nc6 {[%emt 0:00:15]} 5. c4 {[%emt 0:00:18]} Qc7 {[%emt 0:00:12]} 6. g3 {[%emt 0:01:40]} Nf6 {[%emt 0:00:52]} 7. e5 {[%emt 0:00:06]} Ng4 {[%emt 0:00:10]} 8. Qe2 {[%emt 0:00:07]} Be7 {[%emt 0:01:09]} 9. h3 {[%emt 0:08:52]} Nh6 {[%emt 0:00:08]} 10. Nc3 {[%emt 0:00:45]} Nf5 {[%emt 0:01:37]} 11. Ne4 {[%emt 0:01:08]} b6 {[%emt 0:19:06]} 12. Bg2 {[%emt 0:03:08]} Bb7 {[%emt 0:00:10]} 13. g4 {[%emt 0:10:23]} Nfd4 {[%emt 0:00:27]} 14. Nxd4 {[%emt 0:00:08]} cxd4 {[%emt 0:05:56]} 15. f4 {[%emt 0:04:29]} Bh4+ {[%emt 0:02:05]} 16. Kd1 {[%emt 0:07:22]} Be7 {[%emt 0:00:07]} 17. d3 {[%emt 0:00:50]} O-O {[%emt 0:04:30]} 18. g5 {[%emt 0:03:58]} Kh8 {[%emt 0:23:44]} 19. Rc1 {[%emt 0:09:43]} d6 {[%emt 0:02:29]} 20. exd6 {[%emt 0:03:17]} Bxd6 {[%emt 0:00:05]} 21. Nxd6 {[%emt 0:00:07]} Qxd6 {[%emt 0:00:02]} 22. Rf1 {[%emt 0:00:17]} Rad8 {[%emt 0:03:09]} 23. a3 {[%emt 0:05:17]} Na5 {[%emt 0:01:04]} 24. Bxb7 {[%emt 0:08:35]} Nxb7 {[%emt 0:00:02]} 25. Kc2 {[%emt 0:00:16]} Na5 {[%emt 0:11:51]} 26. Qe5 {[%emt 0:08:19]} Qd7 {[%emt 0:07:12]} 27. f5 {[%emt 0:01:56]} Nc6 {[%emt 0:01:03]} 28. fxe6 {[%emt 0:02:31]} fxe6 {[%emt 0:02:17]} 29. Qe4 {[%emt 0:03:08]} Qd6 {[%emt 0:04:11]} 30. Rce1 {[%emt 0:02:07]} e5 {[%emt 0:00:22]} 31. Bc1 {[%emt 0:02:18]} b5 {[%emt 0:02:28]} 32. Bd2 {[%emt 0:10:47]} bxc4 {[%emt 0:02:07]} 33. bxc4 {[%emt 0:00:27]} Qd7 {[%emt 0:02:45]} 34. Rxf8+ {[%emt 0:01:18]} Rxf8 {[%emt 0:00:02]} 35. Qd5 {[%emt 0:00:41]} Qe8 {[%emt 0:00:08]} 36. Re2 {[%emt 0:02:15]} Qg6 {[%emt 0:01:22]} 37. Bb4 {[%emt 0:00:45]} Rd8 {[%emt 0:01:19]} 38. Qc5 {[%emt 0:00:24]} Rg8 {[%emt 0:01:56]} 39. Bd2 {[%emt 0:00:24]} Qe6 {[%emt 0:01:02]} 40. h4 {[%emt 0:00:00]} Qg6 {[%emt 0:00:00]} 41. Re1 {[%emt 0:07:50]} 1/2-1/2

[Event "European Womens-ch 2025"]
[Site "Rhodes"]
[Date "2025.04.10"]
[Round "10.21"]
[White "Fataliyeva, Ulviyya"]
[Black "Allahverdiyeva, Ayan"]
[Result "1-0"]
[Annotator "RC"]
[ECO "A09"]
[WhiteElo "2387"]
[BlackElo "2266"]
[PlyCount "63"]
[EventDate "2025.03.29"]
[EventType "swiss"]
[EventCountry "GRE"]
[SourceTitle "playchess.com"]
[Source "ChessBase"]
[SourceQuality "1"]
[TimeControl "40/5400+30:1800+30"]

1. Nf3 {[%emt 0:04:15]} d5 {[%emt 0:00:05]} 2. c4 {[%emt 0:00:05]} d4 {[%emt 0:00:22]} 3. b4 {[%emt 0:00:06]} c5 {[%emt 0:00:25]} 4. e3 {[%emt 0:00:38]} Nf6 {[%emt 0:00:55]} 5. bxc5 {[%emt 0:05:55]} Nc6 {[%emt 0:02:43]} 6. exd4 {[%emt 0:02:22]} Nxd4 {[%emt 0:00:04]} 7. Bb2 {[%emt 0:00:33]} e5 {[%emt 0:00:04]} 8. Nxd4 {[%emt 0:06:45]} exd4 {[%emt 0:00:07]} 9. d3 {[%emt 0:00:29]} Bxc5 {[%emt 0:02:51]} 10. Nd2 {[%emt 0:00:08]} Ng4 {[%emt 0:09:22]} 11. Be2 {[%emt 0:01:34]} Qh4 {[%emt 0:07:17]} 12. g3 {[%emt 0:09:05]} Qh3 {[%emt 0:05:34]} 13. Qb3 {[%emt 0:00:18]} O-O {[%emt 0:02:45]} 14. Ne4 {[%emt 0:01:16]} Bb6 {[%emt 0:05:03]} 15. O-O-O {[%emt 0:02:40]} Bf5 {[%emt 0:03:42]} 16. f4 {[%emt 0:09:28]} Ne3 {[%emt 0:12:07]} 17. Ng5 {[%emt 0:02:07]} Qh6 {[%emt 0:03:23]} 18. Rdg1 {[%emt 0:02:42]} a5 {[%emt 0:11:54]} 19. a4 {[%emt 0:08:21]} Qd6 {[%emt 0:12:55]} 20. Bf3 {[%emt 0:06:19]} Bc5 {[%emt 0:02:31]} 21. Be4 {[%emt 0:05:59]} Bb4 {[%emt 0:05:28]} 22. Bxf5 {[%emt 0:01:23]} Nxf5 {[%emt 0:00:03]} 23. Kb1 {[%emt 0:00:59]} Ra6 {[%emt 0:01:42]} 24. Ne4 {[%emt 0:07:29]} Qc6 {[%emt 0:03:29]} 25. c5 {[%emt 0:00:13]} b6 {[%emt 0:00:17]} 26. g4 {[%emt 0:00:26]} bxc5 {[%emt 0:02:59]} 27. gxf5 {[%emt 0:01:57]} Rb6 {[%emt 0:00:02]} 28. Rg2 {[%emt 0:00:28]} Rfb8 {[%emt 0:00:02]} 29. Rhg1 {[%emt 0:01:07]} c4 {[%emt 0:03:01]} 30. Rxg7+ {[%emt 0:01:00]} Kh8 {[%emt 0:00:41]} 31. Bxd4 {[%emt 0:01:47]} h5 {[%emt 0:02:05]} 32. Rxf7+ {[%emt 0:01:05]} 1-0